bitfinex/quotes_BTCUSD_20250623
["timestamp","ask_amount","ask_price","bid_price","bid_amount"]
[1750648143839,4.39090809,101480.0,101470.0,0.00113869]
[1750648144051,4.3816843,101480.0,101470.0,0.00113869]
[1750648144263,4.39353768,101480.0,101470.0,0.00113869]
[1750648144481,4.3836843,101480.0,101470.0,0.00013869]
[1750648144719,4.3846843,101480.0,101470.0,0.03223869]
[1750648144948,4.3846843,101480.0,101470.0,0.06556869]
[1750648145152,4.366237,101480.0,101470.0,0.06556869]
[1750648145567,0.003,101480.0,101470.0,0.07213556]
[1750648145975,0.003,101480.0,101470.0,0.06556869]
[1750648146944,0.001,101480.0,101470.0,0.06556869]
[1750648147169,0.001,101480.0,101470.0,0.06656869]
[1750648147586,0.203,101490.0,101480.0,0.06493]
[1750648148217,0.26602391,101500.0,101490.0,0.00113]
[1750648148428,0.49666,101500.0,101490.0,0.06493]
[1750648148833,0.49666,101500.0,101490.0,0.06293]
[1750648149233,0.49662,101500.0,101490.0,0.06293]
[1750648149725,0.48740797,101500.0,101490.0,0.0316]
[1750648149949,0.49775055,101500.0,101490.0,0.0316]
[1750648150293,0.50075055,101500.0,101490.0,0.0316]
[1750648150598,0.47051664,101500.0,101490.0,0.0316]
[1750648150829,0.46330553,101500.0,101490.0,0.0316]
[1750648151050,0.46330553,101500.0,101490.0,0.03273]
[1750648151241,0.20756582,101500.0,101490.0,0.03273]
[1750648152200,0.20756582,101500.0,101490.0,0.06453]
[1750648153583,0.04732582,101500.0,101490.0,0.06453]
[1750648154393,0.00460582,101500.0,101490.0,0.06453]
[1750648154874,0.00260582,101500.0,101490.0,0.06453]
[1750648155181,0.20292,101510.0,101500.0,0.0619]
[1750648155389,0.23057337,101510.0,101500.0,0.06305]
[1750648155586,0.03960975,101520.0,101500.0,0.06305]
[1750648155805,0.2770958,101520.0,101510.0,0.06305]
[1750648156017,0.23057284,101520.0,101510.0,0.06305]
[1750648157101,0.23057266,101520.0,101510.0,0.06305]
[1750648157342,0.07037266,101520.0,101510.0,0.06305]
[1750648157551,0.04272,101520.0,101510.0,0.069355]
[1750648157968,0.04272,101520.0,101510.0,0.065355]
[1750648158168,0.08372734,101520.0,101510.0,0.065355]
[1750648158615,0.08572734,101520.0,101510.0,0.05905]
[1750648158818,0.08772734,101520.0,101510.0,0.05905]
[1750648159025,0.08572734,101520.0,101510.0,0.05905]
[1750648159236,0.08372734,101520.0,101510.0,0.05905]
[1750648159884,0.08372734,101520.0,101510.0,0.0602]
[1750648162688,0.08490734,101520.0,101510.0,0.05905]
[1750648163002,0.10332259,101520.0,101510.0,0.05905]
[1750648165687,0.10214259,101520.0,101510.0,0.05905]
[1750648166534,0.08372734,101520.0,101510.0,0.05905]
[1750648166739,0.08490734,101520.0,101510.0,0.05905]
[1750648167893,0.08372734,101520.0,101510.0,0.05905]
[1750648168096,0.04100734,101520.0,101510.0,0.0602]
[1750648168302,0.2026,101520.0,101510.0,0.0602]
[1750648170261,0.04248,101520.0,101510.0,0.0602]
[1750648170468,0.0819418,101520.0,101510.0,0.0602]
[1750648171402,0.10036306,101520.0,101510.0,0.0602]
[1750648173864,0.10958468,101520.0,101510.0,0.0602]
[1750648175576,0.05788306,101520.0,101510.0,0.06622]
[1750648175791,0.0394618,101520.0,101510.0,0.06622]
[1750648176023,0.43956,101530.0,101510.0,0.00602]
[1750648176245,0.46735664,101530.0,101520.0,0.06545]
[1750648176470,0.30723664,101530.0,101520.0,0.06545]
[1750648177731,0.30842128,101530.0,101520.0,0.0643]
[1750648177941,0.30843151,101530.0,101520.0,0.0653]
[1750648178784,0.34824152,101530.0,101520.0,0.0653]
[1750648180535,0.11128152,101530.0,101520.0,0.0653]
[1750648180748,0.09283132,101530.0,101520.0,0.0653]
[1750648180957,0.11129453,101530.0,101520.0,0.0653]
[1750648182900,0.11822191,101530.0,101520.0,0.0653]
[1750648183111,0.04248,101530.0,101520.0,0.0663]
[1750648183325,0.04248,101530.0,101520.0,0.06755]
[1750648184418,0.24288307,101530.0,101520.0,0.06755]
[1750648184835,0.24288307,101530.0,101520.0,0.074305]
[1750648185771,0.08280307,101530.0,101520.0,0.074305]
[1750648187613,0.04032307,101530.0,101520.0,0.074305]
[1750648187834,0.20252,101550.0,101520.0,0.073055]
[1750648188210,0.20252,101550.0,101540.0,0.0632]
[1750648189167,0.20952,101550.0,101540.0,0.0632]
[1750648189612,0.20652,101550.0,101540.0,0.0632]
[1750648189835,0.20952,101550.0,101540.0,0.0632]
[1750648190918,0.24521324,101550.0,101540.0,0.0632]
[1750648191130,0.24921324,101550.0,101540.0,0.0632]
[1750648192014,0.08913324,101550.0,101540.0,0.0632]
[1750648192128,0.24921324,101550.0,101540.0,0.0632]
[1750648192542,0.24921324,101550.0,101540.0,0.070895]
[1750648192761,0.24921324,101550.0,101540.0,0.0632]
[1750648193183,0.24921324,101550.0,101540.0,0.06445]
[1750648193685,0.24621324,101550.0,101540.0,0.06445]
[1750648193855,0.24221324,101550.0,101540.0,0.06445]
[1750648194297,0.24221324,101550.0,101540.0,0.06545]
[1750648194675,0.24221324,101550.0,101540.0,0.071995]
[1750648195356,0.26986914,101550.0,101540.0,0.06545]
[1750648196061,0.26986914,101550.0,101540.0,0.031]
[1750648196245,0.27096914,101550.0,101540.0,0.031]
[1750648196481,0.27788157,101550.0,101540.0,0.0635]
[1750648196685,0.27096914,101550.0,101540.0,0.0635]
[1750648197080,0.26986914,101550.0,101540.0,0.0635]
[1750648197507,0.06734914,101550.0,101540.0,0.071225]
[1750648197659,0.06734546,101550.0,101540.0,0.071225]
[1750648197863,0.04891187,101550.0,101540.0,0.08822772]
[1750648198073,5e-05,101570.0,101540.0,0.3737672]
[1750648198281,0.05037265,101570.0,101560.0,0.063]
[1750648198478,0.02782907,101570.0,101560.0,0.06425]
[1750648199091,0.0278294,101570.0,101560.0,0.06425]
[1750648201017,0.0278294,101570.0,101560.0,0.07092116]
[1750648201439,0.06698454,101570.0,101560.0,0.07092116]
[1750648201650,0.0278294,101570.0,101560.0,0.07092116]
[1750648202491,0.00940236,101570.0,101560.0,0.07092116]
[1750648202746,0.02782645,101570.0,101560.0,0.06425]
[1750648204056,0.00940236,101570.0,101560.0,0.06425]
[1750648204683,0.00940056,101570.0,101560.0,0.06425]
[1750648204888,0.05012618,101570.0,101560.0,0.06425]
[1750648205461,0.06853324,101570.0,101560.0,0.063]
[1750648205665,0.06963324,101570.0,101560.0,0.0328]
[1750648207233,0.06853324,101570.0,101560.0,0.0636]
[1750648207563,0.06853118,101570.0,101560.0,0.0636]
[1750648207770,0.06963118,101570.0,101560.0,0.0636]
[1750648210526,0.06963358,101570.0,101560.0,0.0636]
[1750648213547,0.06964699,101570.0,101560.0,0.0636]
[1750648214174,0.0696513,101570.0,101560.0,0.0636]
[1750648214610,0.0685513,101570.0,101560.0,0.0636]
[1750648215847,0.07546462,101570.0,101560.0,0.0636]
[1750648216280,0.07546999,101570.0,101560.0,0.0636]
[1750648217346,0.07546999,101570.0,101550.0,0.00125]
[1750648217347,0.28881473,101570.0,101550.0,0.0631]
[1750648217552,0.28881454,101570.0,101550.0,0.0631]
[1750648217764,0.30256325,101570.0,101550.0,0.0631]
[1750648218408,0.30356325,101570.0,101550.0,0.0631]
[1750648218615,0.30556325,101570.0,101550.0,0.0631]
[1750648218838,0.30456325,101570.0,101550.0,0.0631]
[1750648219288,0.30558366,101570.0,101550.0,0.0631]
[1750648219739,0.30558366,101570.0,101550.0,0.06431]
[1750648219964,0.30558366,101570.0,101560.0,0.0305]
[1750648220790,0.30258366,101570.0,101560.0,0.0305]
[1750648221210,0.30558366,101570.0,101560.0,0.0305]
[1750648222015,0.30559565,101570.0,101560.0,0.0305]
[1750648223243,0.30559565,101570.0,101550.0,0.01441]
[1750648224239,0.30459565,101570.0,101550.0,0.01441]
[1750648224442,0.30359565,101570.0,101550.0,0.01441]
[1750648224838,0.30559565,101570.0,101550.0,0.01441]
[1750648225054,0.30561821,101570.0,101550.0,0.01441]
[1750648226263,0.30561821,101570.0,101550.0,0.04671]
[1750648227896,0.30562179,101570.0,101550.0,0.04671]
[1750648231204,0.30562701,101570.0,101550.0,0.04671]
[1750648231789,0.30563503,101570.0,101550.0,0.04671]
[1750648231938,0.0424,101560.0,101550.0,0.04671]
[1750648232140,0.07056406,101560.0,101550.0,0.04671]
[1750648233191,0.23056406,101560.0,101550.0,0.04671]
[1750648233624,0.23056406,101560.0,101550.0,0.04771]
[1750648234043,0.22132991,101560.0,101550.0,0.04771]
[1750648234262,0.22132991,101560.0,101550.0,0.04871]
[1750648235509,0.0424,101560.0,101550.0,0.06851]
[1750648236827,0.2024,101560.0,101550.0,0.06851]
[1750648237292,0.23139941,101560.0,101550.0,0.06851]
[1750648244071,0.24064537,101560.0,101550.0,0.06851]
[1750648245534,0.24064508,101560.0,101550.0,0.06851]
[1750648247653,0.25913889,101560.0,101550.0,0.06851]
[1750648248466,0.25913873,101560.0,101550.0,0.06851]
[1750648249079,0.18769932,101560.0,101550.0,0.075361]
[1750648249571,0.02773932,101560.0,101550.0,0.06851]
[1750648252837,0.02773932,101560.0,101550.0,0.0673]
[1750648253050,0.03467312,101560.0,101550.0,0.0673]
[1750648253482,0.05833872,101560.0,101550.0,0.0673]
[1750648256939,0.05833056,101560.0,101550.0,0.0673]
[1750648257143,0.05832974,101560.0,101550.0,0.0673]
[1750648259638,0.08279327,101550.0,101520.0,0.29804]
[1750648259874,0.27522755,101540.0,101520.0,0.004]
[1750648260078,0.33354111,101540.0,101520.0,0.004]
[1750648260918,0.26059365,101540.0,101520.0,0.005]
[1750648261122,0.23693973,101540.0,101520.0,0.00724]
[1750648261333,0.23693973,101540.0,101520.0,0.00624]
[1750648261807,0.30194114,101540.0,101520.0,0.00624]
[1750648262025,0.29209349,101540.0,101520.0,0.00624]
[1750648262262,0.26843973,101540.0,101520.0,0.00524]
[1750648262472,0.26259349,101540.0,101520.0,0.00524]
[1750648262677,0.26259349,101540.0,101520.0,0.06764]
[1750648262889,0.26248948,101540.0,101520.0,0.06764]
[1750648263556,0.04232,101530.0,101520.0,0.06764]
[1750648263764,0.0607467,101530.0,101520.0,0.06764]
[1750648264406,0.0184267,101530.0,101520.0,0.06764]
[1750648264615,0.2207467,101530.0,101520.0,0.06764]
[1750648264844,0.2207467,101530.0,101520.0,0.074404]
[1750648265268,0.20232,101530.0,101520.0,0.074404]
[1750648265502,0.20232,101530.0,101520.0,0.075404]
[1750648265725,0.2368,101550.0,101540.0,0.0651]
[1750648265938,0.43912,101550.0,101540.0,0.0651]
[1750648266987,0.44112,101550.0,101540.0,0.0651]
[1750648267208,0.44412,101550.0,101540.0,0.0651]
[1750648267443,0.45396668,101550.0,101540.0,0.0651]
[1750648267648,0.45396659,101550.0,101540.0,0.0651]
[1750648270228,0.44412,101550.0,101540.0,0.0651]
[1750648270937,0.45396649,101550.0,101540.0,0.0171]
[1750648271411,0.44412,101550.0,101540.0,0.0171]
[1750648272142,0.46381317,101550.0,101530.0,0.00124]
[1750648272636,0.46381308,101550.0,101530.0,0.00124]
[1750648273120,0.46181308,101550.0,101530.0,0.00124]
[1750648273359,0.45196649,101550.0,101530.0,0.00124]
[1750648273841,0.45881317,101550.0,101530.0,0.00124]
[1750648274076,0.44896649,101550.0,101530.0,0.06434]
[1750648274318,0.45196649,101550.0,101530.0,0.06434]
[1750648274564,0.45396649,101550.0,101530.0,0.06434]
[1750648275046,0.46381317,101550.0,101530.0,0.06434]
[1750648275505,4.160277,101540.0,101530.0,0.0631]
[1750648275714,0.02762468,101540.0,101530.0,0.0631]
[1750648276619,0.02762468,101540.0,101520.0,0.06746]
[1750648276840,0.20232,101530.0,101520.0,0.06746]
[1750648278119,0.20232,101530.0,101520.0,0.06846]
[1750648278775,0.20232,101530.0,101520.0,0.06946]
[1750648281032,0.222552,101530.0,101520.0,0.06946]
[1750648281252,0.23176888,101530.0,101520.0,0.06946]
[1750648281480,0.23176888,101530.0,101520.0,0.0683]
[1750648281703,0.25711799,101530.0,101520.0,0.037]
[1750648282144,4.41739499,101530.0,101520.0,0.037]
[1750648282616,4.1701264,101520.0,101510.0,0.0311]
[1750648282873,4.160277,101510.0,101500.0,0.03236]
[1750648283096,0.23683161,101510.0,101500.0,0.03236]
[1750648283553,0.23683161,101510.0,101500.0,0.0312]
[1750648283769,0.23683161,101510.0,101500.0,0.03236]
[1750648283983,0.23692234,101510.0,101500.0,0.03236]
[1750648284197,0.25715434,101510.0,101500.0,0.03636]
[1750648284867,0.25715434,101510.0,101500.0,0.03236]
[1750648285298,0.25715434,101510.0,101500.0,0.03336]
[1750648285512,0.28690845,101510.0,101500.0,0.03336]
[1750648285932,0.28690845,101510.0,101500.0,0.0322]
[1750648286179,0.31760845,101510.0,101500.0,0.0011]
[1750648286669,0.32745901,101510.0,101500.0,0.0011]
[1750648286886,4.7461651,101510.0,101500.0,0.0011]
[1750648287108,4.660277,101490.0,101480.0,0.06826]
[1750648287327,4.660277,101490.0,101480.0,0.03666]
[1750648287328,4.41061926,101490.0,101480.0,0.03666]
[1750648287552,0.25034226,101490.0,101480.0,0.03666]
[1750648287778,4.43032437,101490.0,101480.0,0.004]
[1750648288029,0.00985328,101480.0,101460.0,0.07894133]
[1750648288252,0.20224,101470.0,101460.0,0.03276]
[1750648288490,0.22069304,101470.0,101460.0,0.03276]
[1750648289566,0.26077655,101470.0,101460.0,0.03476]
[1750648289787,0.26077655,101470.0,101460.0,0.0352216]
[1750648290007,0.26768532,101470.0,101460.0,0.0352216]
[1750648290449,0.24923228,101470.0,101460.0,0.0352216]
[1750648290664,0.24923228,101470.0,101460.0,0.0382216]
[1750648290878,0.24232351,101470.0,101460.0,0.0382216]
[1750648291104,0.24232351,101470.0,101460.0,0.0692216]
[1750648291531,0.26255551,101470.0,101460.0,0.0364616]
[1750648291754,0.26255551,101470.0,101460.0,0.0376216]
[1750648292625,0.54232,101470.0,101460.0,0.0054616]
[1750648292857,0.54232,101470.0,101460.0,0.0713216]
[1750648293572,0.58321656,101470.0,101460.0,0.0713216]
[1750648293798,0.74321656,101470.0,101460.0,0.0713216]
[1750648294014,0.24321656,101470.0,101460.0,0.0713216]
[1750648296883,0.58321656,101470.0,101460.0,0.0713216]
[1750648300872,0.59009711,101470.0,101460.0,0.0377616]
[1750648302271,0.59009711,101470.0,101450.0,0.0315]
[1750648302272,0.34,101460.0,101450.0,0.0315]
[1750648302493,0.34688055,101460.0,101450.0,0.03196242]
[1750648303378,0.34688055,101460.0,101450.0,0.03315242]
[1750648304279,4.54117356,101470.0,101460.0,0.03]
[1750648304500,0.59013881,101470.0,101460.0,0.01619]
[1750648304716,0.54924225,101470.0,101460.0,0.01619]
[1750648305162,0.54924225,101470.0,101460.0,0.04669]
[1750648306494,0.55024225,101470.0,101460.0,0.04669]
[1750648306923,0.55224225,101470.0,101460.0,0.04669]
[1750648307616,0.61534665,101470.0,101460.0,0.04669]
[1750648308964,0.63372882,101470.0,101460.0,0.04669]
[1750648311656,0.64296406,101470.0,101460.0,0.04669]
[1750648312301,0.6176702,101470.0,101460.0,0.04669]
[1750648312512,0.64298616,101470.0,101460.0,0.04669]
[1750648314749,0.65649681,101470.0,101460.0,0.04669]
[1750648314970,0.64298616,101470.0,101460.0,0.04669]
[1750648315178,0.64298616,101470.0,101460.0,0.0455]
[1750648315378,0.68248039,101470.0,101460.0,0.015]
[1750648316245,0.6824802,101470.0,101460.0,0.015]
[1750648316453,0.74168757,101470.0,101460.0,0.015]
[1750648316882,0.75154182,101470.0,101460.0,0.015]
[1750648317083,0.74168757,101470.0,101460.0,0.015]
[1750648317730,0.34,101460.0,101450.0,0.06146242]
[1750648317935,0.39819252,101460.0,101450.0,0.06265242]
[1750648318149,0.37969987,101460.0,101450.0,0.06265242]
[1750648318362,0.39820588,101460.0,101450.0,0.06265242]
[1750648318811,0.05820588,101460.0,101450.0,0.06265242]
[1750648319000,0.05820588,101460.0,101450.0,0.06465242]
[1750648319202,0.05820588,101460.0,101450.0,0.06665242]
[1750648319627,0.05820397,101460.0,101450.0,0.06665242]
[1750648320049,0.05820397,101460.0,101450.0,0.06546242]
[1750648320473,0.05820397,101460.0,101450.0,0.00446242]
[1750648320474,0.06805919,101460.0,101450.0,0.00446242]
[1750648320693,0.4486147,101460.0,101450.0,0.00446242]
[1750648320906,0.44861461,101460.0,101450.0,0.00446242]
[1750648321131,0.44861772,101460.0,101450.0,0.00446242]
[1750648321340,0.4387623,101460.0,101450.0,0.00446242]
[1750648321757,0.4387623,101460.0,101440.0,0.02095242]
[1750648321976,0.20232,101450.0,101440.0,0.02109093]
[1750648322187,0.26052708,101450.0,101440.0,0.02109093]
[1750648323515,0.26052708,101450.0,101440.0,0.02309093]
[1750648323779,0.26051054,101450.0,101440.0,0.02309093]
[1750648323971,0.28973753,101450.0,101440.0,0.02309093]
[1750648325042,0.28973753,101450.0,101440.0,0.02509093]
[1750648325253,0.28973753,101450.0,101440.0,0.05649093]
[1750648326561,0.28972798,101450.0,101440.0,0.05649093]
[1750648327749,0.04228,101450.0,101440.0,0.06852851]
[1750648328634,0.04228,101450.0,101440.0,0.03712851]
[1750648329074,0.20232,101450.0,101440.0,0.03712851]
[1750648330187,0.20232,101450.0,101440.0,0.03593851]
[1750648330415,0.25263258,101450.0,101440.0,0.00413851]
[1750648330641,0.0306,101440.0,101420.0,0.00129]
[1750648330859,0.54232,101430.0,101420.0,0.03232621]
[1750648331088,0.54232,101430.0,101420.0,0.00023621]
[1750648331316,0.60312,101430.0,101420.0,0.00023621]
[1750648331804,0.64208902,101430.0,101420.0,0.00023621]
[1750648332024,4.79250779,101430.0,101420.0,0.00023621]
[1750648333231,0.57143079,101430.0,101420.0,0.00023621]
[1750648333455,0.57143079,101430.0,101420.0,0.03422621]
[1750648333679,0.57343079,101430.0,101420.0,0.06572621]
[1750648334798,0.37111079,101430.0,101420.0,0.06572621]
[1750648335048,0.54432,101430.0,101420.0,0.06572621]
[1750648335515,0.54432,101430.0,101420.0,0.06453621]
[1750648335723,0.54432,101430.0,101420.0,0.00023621]
[1750648336176,0.6466593,101430.0,101420.0,0.00023621]
[1750648336383,0.63680116,101430.0,101420.0,0.00023621]
[1750648336604,0.64665939,101430.0,101420.0,0.00023621]
[1750648336835,4.82665334,101430.0,101420.0,0.00023621]
[1750648337288,4.84637117,101430.0,101420.0,0.00023621]
[1750648337511,5.02383493,101430.0,101420.0,0.00023621]
[1750648337728,4.565177,101420.0,101410.0,0.0001]
[1750648337955,4.565177,101420.0,101410.0,0.00023869]
[1750648338207,4.57503621,101420.0,101410.0,0.00023869]
[1750648338429,4.58489571,101420.0,101410.0,0.00023869]
[1750648338648,4.565177,101420.0,101410.0,0.00023869]
[1750648338855,4.57503621,101420.0,101410.0,0.00023869]
[1750648339071,4.58489561,101420.0,101410.0,0.00023869]
[1750648339288,4.58589561,101420.0,101390.0,0.01832869]
[1750648339503,0.34,101400.0,101390.0,0.04842869]
[1750648340615,0.38023901,101400.0,101390.0,0.04842869]
[1750648341711,0.38023901,101400.0,101390.0,0.05142869]
[1750648342154,0.38123901,101400.0,101390.0,0.05742869]
[1750648342682,0.39474966,101400.0,101390.0,0.05742869]
[1750648342888,0.38123901,101400.0,101390.0,0.04029]
[1750648344937,0.38123901,101400.0,101390.0,0.01019]
[1750648345366,0.38123901,101400.0,101390.0,0.009]
[1750648346028,0.38123901,101400.0,101390.0,0.01019]
[1750648346234,0.38023901,101400.0,101390.0,0.00419]
[1750648346654,0.38023901,101400.0,101390.0,0.03929]
[1750648346836,0.38023901,101400.0,101390.0,0.07079]
[1750648347054,0.38023901,101400.0,101390.0,0.06779]
[1750648347477,0.24255901,101400.0,101390.0,0.06879]
[1750648349391,0.04023901,101400.0,101390.0,0.06879]
[1750648349612,0.58255901,101400.0,101390.0,0.06879]
[1750648349816,0.54232,101400.0,101390.0,0.06879]
[1750648350258,0.34,101400.0,101390.0,0.06879]
[1750648350470,4.660277,101420.0,101410.0,0.0612]
[1750648350691,0.20232,101420.0,101410.0,0.06239]
[1750648350902,0.54232,101420.0,101410.0,0.06239]
[1750648351527,0.20232,101420.0,101410.0,0.03139]
[1750648351755,0.24313437,101420.0,101410.0,0.03139]
[1750648351990,0.24313437,101420.0,101410.0,0.00119]
[1750648351991,0.24513437,101420.0,101410.0,0.00119]
[1750648352208,0.24513437,101420.0,101400.0,0.06609]
[1750648352428,0.30723437,101420.0,101390.0,0.06459]
[1750648352648,0.30923437,101420.0,101390.0,0.06459]
[1750648352876,0.31909348,101420.0,101390.0,0.06459]
[1750648353351,0.30523437,101420.0,101390.0,0.06459]
[1750648353568,0.30923437,101420.0,101400.0,0.00119]
[1750648353792,0.30923437,101420.0,101400.0,0.03139]
[1750648354002,0.30723437,101420.0,101400.0,0.03139]
[1750648354406,0.30923437,101420.0,101400.0,0.03139]
[1750648354796,0.30723437,101420.0,101400.0,0.03139]
[1750648355005,0.30923437,101420.0,101400.0,0.03139]
[1750648355234,0.30723437,101420.0,101400.0,0.03139]
[1750648355653,0.33283653,101420.0,101400.0,0.03139]
[1750648355864,0.35820653,101420.0,101400.0,0.03139]
[1750648357494,0.35820638,101420.0,101400.0,0.03139]
[1750648358312,0.37364631,101420.0,101400.0,0.03139]
[1750648358568,0.34,101410.0,101400.0,0.03139]
[1750648358779,0.34691894,101410.0,101400.0,0.03139]
[1750648359832,0.34691894,101410.0,101400.0,0.03239]
[1750648360477,0.34791894,101410.0,101400.0,0.03239]
[1750648360886,0.34791894,101410.0,101400.0,0.00219]
[1750648361133,0.41161894,101410.0,101400.0,0.001]
[1750648361363,0.43009956,101410.0,101400.0,0.001]
[1750648361808,0.08318062,101410.0,101400.0,0.001]
[1750648362034,0.43011249,101410.0,101400.0,0.001]
[1750648362459,0.42236618,101410.0,101400.0,0.001]
[1750648362679,0.42236618,101410.0,101400.0,0.00221]
[1750648363303,0.42236618,101410.0,101400.0,0.001]
[1750648363916,0.4316097,101410.0,101400.0,0.001]
[1750648364943,0.42467902,101410.0,101400.0,0.001]
[1750648365153,0.43161165,101410.0,101400.0,0.001]
[1750648366639,0.09161165,101410.0,101400.0,0.001]
[1750648366866,0.43161165,101410.0,101370.0,0.40171332]
[1750648367085,0.54232,101400.0,101370.0,0.40171332]
[1750648367322,0.56773444,101400.0,101380.0,0.00246568]
[1750648367524,0.54925263,101400.0,101380.0,0.00246568]
[1750648367737,0.54925621,101400.0,101380.0,0.00246568]
[1750648368443,0.54332,101400.0,101380.0,0.00246568]
[1750648368863,0.54232,101400.0,101390.0,0.00121]
[1750648369007,0.54332,101400.0,101390.0,0.00121]
[1750648369921,0.54232,101400.0,101390.0,0.06391]
[1750648370556,0.34013823,101410.0,101400.0,0.06391]
[1750648370772,0.57718164,101410.0,101400.0,0.06391]
[1750648371415,0.57718164,101410.0,101400.0,0.06291]
[1750648372078,0.56893275,101410.0,101400.0,0.06291]
[1750648372941,0.56993275,101410.0,101400.0,0.06291]
[1750648373362,0.54449823,101410.0,101400.0,0.06291]
[1750648374403,0.16221823,101410.0,101400.0,0.06291]
[1750648375520,0.00213823,101410.0,101400.0,0.069201]
[1750648375735,0.00213823,101410.0,101400.0,0.07166597]
[1750648376427,0.00213823,101410.0,101400.0,0.36091732]
[1750648376639,0.00213823,101410.0,101400.0,0.069201]
[1750648376852,0.00113823,101410.0,101400.0,0.06537498]
[1750648377062,0.00113823,101410.0,101400.0,0.09503698]
[1750648377279,0.00113823,101410.0,101400.0,0.09803698]
[1750648377779,0.00113823,101410.0,101400.0,0.40182918]
[1750648378004,0.00113823,101410.0,101400.0,0.3993642]
[1750648378229,0.00113823,101410.0,101400.0,0.47649475]
[1750648378443,0.00013823,101410.0,101400.0,0.47649475]
[1750648378671,0.00113823,101410.0,101400.0,0.4053642]
[1750648379814,0.00113823,101410.0,101400.0,0.6981642]
[1750648381045,0.00113823,101410.0,101400.0,0.98741555]
[1750648381298,0.00013823,101410.0,101400.0,0.98141555]
[1750648381509,0.00013823,101410.0,101400.0,0.79246359]
[1750648381721,0.00013823,101410.0,101400.0,1.08571494]
[1750648381722,0.00113823,101410.0,101400.0,1.08571494]
[1750648381933,0.00113823,101410.0,101400.0,0.80146359]
[1750648382153,0.00113823,101410.0,101400.0,1.24101433]
[1750648382366,0.00113823,101410.0,101400.0,1.24201433]
[1750648382787,0.00113823,101410.0,101400.0,1.27130807]
[1750648383633,0.00113823,101410.0,101400.0,1.17100868]
[1750648385812,0.00113823,101410.0,101400.0,0.88175733]
[1750648386650,0.00113823,101410.0,101400.0,1.17100868]
[1750648386867,0.54557161,101450.0,101420.0,0.01454085]
[1750648387129,0.54557161,101450.0,101430.0,0.03331]
[1750648387130,0.30867025,101450.0,101430.0,0.03331]
[1750648388197,0.31167025,101450.0,101430.0,0.07052509]
[1750648388613,0.31067025,101450.0,101430.0,0.07052509]
[1750648388825,0.34,101440.0,101430.0,0.07052509]
[1750648389287,0.34,101440.0,101430.0,0.03331]
[1750648389490,0.34,101440.0,101430.0,0.06727442]
[1750648390438,0.42833025,101450.0,101430.0,0.06606442]
[1750648390656,0.08333025,101450.0,101440.0,0.06727421]
[1750648391092,0.04109025,101450.0,101440.0,0.06727421]
[1750648391744,0.04109025,101450.0,101440.0,0.03577421]
[1750648392397,0.04109025,101450.0,101440.0,0.06947421]
[1750648393494,0.04109025,101450.0,101440.0,0.12466693]
[1750648393949,0.00013864,101450.0,101440.0,0.42845913]
[1750648394168,0.00013864,101450.0,101440.0,0.42599492]
[1750648394381,0.00013864,101450.0,101440.0,0.16639357]
[1750648394597,0.00013864,101450.0,101440.0,0.16885752]
[1750648396159,0.00013864,101450.0,101440.0,0.46165752]
[1750648396380,0.00013864,101450.0,101440.0,0.45919357]
[1750648397272,0.00013864,101450.0,101440.0,0.74844492]
[1750648400896,0.00013864,101450.0,101440.0,0.74744492]
[1750648401342,0.00013864,101450.0,101440.0,0.75544492]
[1750648403778,0.00013864,101450.0,101440.0,0.90574431]
[1750648403999,0.00013864,101450.0,101440.0,0.61649296]
[1750648404229,0.00013864,101450.0,101440.0,0.90574431]
[1750648407908,0.00013864,101450.0,101440.0,0.94794431]
[1750648408800,0.00013864,101450.0,101440.0,0.94494431]
[1750648409015,0.00113864,101450.0,101440.0,0.94594431]
[1750648409225,0.00113864,101450.0,101440.0,0.95594431]
[1750648409462,0.00213864,101450.0,101440.0,0.95594431]
[1750648411008,0.0648,101480.0,101470.0,0.01578085]
[1750648411216,0.09290093,101480.0,101470.0,0.46854085]
[1750648411433,0.09290093,101480.0,101470.0,0.50271409]
[1750648411866,0.09290093,101480.0,101470.0,0.50395409]
[1750648412526,0.09490131,101480.0,101470.0,0.50395409]
[1750648413222,0.0092113,101480.0,101470.0,0.50395409]
[1750648413439,0.0092113,101480.0,101470.0,0.50495409]
[1750648414083,0.0092113,101480.0,101470.0,0.37589409]
[1750648414303,0.0092113,101480.0,101470.0,0.56635409]
[1750648414530,0.03946848,101490.0,101470.0,0.56511409]
[1750648414737,0.03960701,101490.0,101480.0,0.00370326]
[1750648414950,0.00013853,101490.0,101480.0,0.00370326]
[1750648416058,0.10463474,101490.0,101480.0,0.00370326]
[1750648416536,0.06363853,101490.0,101480.0,0.00370326]
[1750648416748,0.06454927,101490.0,101480.0,0.00370326]
[1750648416959,0.06554927,101490.0,101480.0,0.00370326]
[1750648417401,0.06454927,101490.0,101480.0,0.00370326]
[1750648417856,0.06554927,101490.0,101480.0,0.00370326]
[1750648419583,0.03244927,101490.0,101480.0,0.00370326]
[1750648420011,0.10593742,101490.0,101480.0,0.00370326]
[1750648420221,0.03244927,101490.0,101480.0,0.00370326]
[1750648422268,0.00204927,101490.0,101480.0,0.03370326]
[1750648422487,0.00204927,101490.0,101480.0,0.14637013]
[1750648422708,0.00204927,101490.0,101480.0,0.45371098]
[1750648422934,0.00104927,101490.0,101480.0,0.45124772]
[1750648423155,0.00104927,101490.0,101480.0,0.90041907]
[1750648423370,0.00104927,101490.0,101480.0,0.90141907]
[1750648423597,4.927e-05,101490.0,101480.0,0.90141907]
[1750648424050,4.927e-05,101490.0,101480.0,0.90241907]
[1750648424483,4.927e-05,101490.0,101480.0,0.90641907]
[1750648425107,0.50217,101520.0,101500.0,0.00121]
[1750648425321,0.0603,101510.0,101490.0,0.29401]
[1750648425545,0.08793015,101510.0,101490.0,0.29401]
[1750648427132,0.42793015,101510.0,101490.0,0.29401]
[1750648427375,0.0309,101500.0,101490.0,0.2928]
[1750648427600,0.00921004,101500.0,101490.0,0.29401]
[1750648427825,0.04927677,101500.0,101490.0,0.34697617]
[1750648428047,0.00921004,101500.0,101490.0,0.34697617]
[1750648428505,0.0276298,101500.0,101490.0,0.34797617]
[1750648428745,0.36763274,101500.0,101490.0,0.34797617]
[1750648428961,0.34921298,101500.0,101490.0,0.29501]
[1750648429182,0.34921298,101500.0,101490.0,0.29601]
[1750648429641,0.39793898,101500.0,101490.0,0.29601]
[1750648430962,0.36763898,101500.0,101490.0,0.29601]